[Event "Fast Chess"]
[Site "ChessKid.com"]
[Date "2020.04.16"]
[Round "3"]
[White "Georgiev, Maximilian"]
[Black "Hlinka, Patricia"]
[Result "1-0"]
[ECO "C40"]
[WhiteElo "1387"]
[BlackElo "942"]
[PlyCount "67"]
[EventDate "2020.??.??"]
[TimeControl "300+10"]
[WhiteClock "0:02:18"]
[BlackClock "0:03:14"]

1. e4 {[%emt 0:00:15]} e5 {[%emt 0:00:10]} 2. Nf3 {[%emt 0:00:10]} f6 {[%emt 0:
00:13]} 3. Bc4 {[%emt 0:00:11]} Nh6 {[%emt 0:00:13]} 4. O-O {[%emt 0:00:12]}
Nc6 {[%emt 0:00:15]} 5. a3 {[%emt 0:00:12]} a5 {[%emt 0:00:13]} 6. Nc3 {
[%emt 0:00:11]} a4 {[%emt 0:00:13]} 7. d3 {[%emt 0:00:12]} Nb8 {[%emt 0:00:12]}
8. Bb5 {[%emt 0:00:15]} c6 {[%emt 0:00:12]} 9. Bxa4 {[%emt 0:00:11]} b5 {
[%emt 0:00:17]} 10. Bb3 {[%emt 0:00:11]} Ke7 {[%emt 0:00:16]} 11. Bxh6 {
[%emt 0:00:15]} gxh6 {[%emt 0:00:12]} 12. h3 {[%emt 0:00:11]} h5 {[%emt 0:00:
12]} 13. Nd2 {[%emt 0:00:13]} Bh6 {[%emt 0:00:20]} 14. Ndb1 {[%emt 0:00:16]}
Bf8 {[%emt 0:00:15]} 15. Qxh5 {[%emt 0:00:11]} Kd6 {[%emt 0:00:17]} 16. Qf7 {
[%emt 0:00:18]} Bh6 {[%emt 0:00:18]} 17. Qh5 {[%emt 0:00:14]} Bd2 {[%emt 0:00:
16]} 18. Nxd2 {[%emt 0:00:12]} Rg8 {[%emt 0:00:16]} 19. Qxh7 {[%emt 0:00:15]}
Rh8 {[%emt 0:00:14]} 20. Qf5 {[%emt 0:00:13]} Ke7 {[%emt 0:00:14]} 21. Qf3 {
[%emt 0:00:14]} Ke8 {[%emt 0:00:14]} 22. a4 {[%emt 0:00:18]} bxa4 {[%emt 0:00:
11]} 23. Bxa4 {[%emt 0:00:10]} Kf8 {[%emt 0:00:21]} 24. Bb3 {[%emt 0:00:13]}
Rxa1 {[%emt 0:00:18]} 25. Rxa1 {[%emt 0:00:11]} Rg8 {[%emt 0:00:15]} 26. Bxg8 {
[%emt 0:00:16]} Kxg8 {[%emt 0:00:13]} 27. Qf5 {[%emt 0:00:15]} d6 {[%emt 0:00:
15]} 28. Qh5 {[%emt 0:00:13]} c5 {[%emt 0:00:17]} 29. Qg6+ {[%emt 0:00:12]} Kh8
{[%emt 0:00:14]} 30. Nd5 {[%emt 0:00:14]} Nc6 {[%emt 0:00:21]} 31. Nxf6 {
[%emt 0:00:14]} Qc7 {[%emt 0:00:17]} 32. Nc4 {[%emt 0:00:16]} Nd4 {[%emt 0:00:
14]} 33. Nxd6 {[%emt 0:00:14]} Qxd6 {[%emt 0:00:17]} 34. Qh7# {[%emt 0:00:11]
TallSnazzyBall won by checkmate} 1-0

[Event "Fast Chess"]
[Site "ChessKid.com"]
[Date "2020.04.16"]
[Round "3"]
[White "Halimi, Dorian"]
[Black "Dai, Lana"]
[Result "0-1"]
[ECO "C55"]
[WhiteElo "899"]
[BlackElo "1265"]
[PlyCount "30"]
[EventDate "2020.??.??"]
[TimeControl "300+10"]
[WhiteClock "0:03:52"]
[BlackClock "0:04:04"]

1. e4 {[%emt 0:00:09]} e5 {[%emt 0:00:11]} 2. Nf3 {[%emt 0:00:12]} Nc6 {
[%emt 0:00:10]} 3. Bc4 {[%emt 0:00:12]} h6 {[%emt 0:00:12]} 4. Nc3 {[%emt 0:00:
16]} Nf6 {[%emt 0:00:11]} 5. Nb5 {[%emt 0:00:12]} a6 {[%emt 0:00:20]} 6. Nc3 {
[%emt 0:00:16]} Bc5 {[%emt 0:00:15]} 7. d3 {[%emt 0:00:13]} d6 {[%emt 0:00:13]}
8. O-O {[%emt 0:00:15]} Bg4 {[%emt 0:00:11]} 9. Bd2 {[%emt 0:00:17]} Nd4 {
[%emt 0:00:13]} 10. Qe1 {[%emt 0:00:17]} Nxf3+ {[%emt 0:00:19]} 11. gxf3 {
[%emt 0:00:13]} Bxf3 {[%emt 0:00:21]} 12. Nd5 {[%emt 0:00:13]} Nxd5 {[%emt 0:
00:15]} 13. Bxd5 {[%emt 0:00:11]} c6 {[%emt 0:00:17]} 14. Bc4 {[%emt 0:00:14]}
Qh4 {[%emt 0:00:16]} 15. a3 {[%emt 0:00:17]} Qg4# {[%emt 0:00:13] TopBrownCave
won by checkmate} 0-1

[Event "Fast Chess"]
[Site "ChessKid.com"]
[Date "2020.04.16"]
[Round "4"]
[White "Horvath, Alexander"]
[Black "Georgiev, Maximilian"]
[Result "1-0"]
[ECO "B01"]
[WhiteElo "1342"]
[BlackElo "1378"]
[PlyCount "61"]
[EventDate "2020.??.??"]
[TimeControl "300+10"]
[WhiteClock "0:03:07"]
[BlackClock "0:01:27"]

1. e4 {[%emt 0:00:09]} d5 {[%emt 0:00:11]} 2. exd5 {[%emt 0:00:12]} Qxd5 {
[%emt 0:00:10]} 3. Nc3 {[%emt 0:00:11]} Qd8 {[%emt 0:00:10]} 4. Nf3 {[%emt 0:
00:12]} Nf6 {[%emt 0:00:10]} 5. Bc4 {[%emt 0:00:16]} e6 {[%emt 0:00:11]} 6. d3
{[%emt 0:00:12]} Be7 {[%emt 0:00:10]} 7. Bf4 {[%emt 0:00:11]} O-O {[%emt 0:00:
12]} 8. O-O {[%emt 0:00:13]} a6 {[%emt 0:00:11]} 9. Qe2 {[%emt 0:00:13]} h6 {
[%emt 0:00:12]} 10. d4 {[%emt 0:00:10]} b5 {[%emt 0:00:13]} 11. Bb3 {[%emt 0:
00:17]} Bb7 {[%emt 0:00:16]} 12. a3 {[%emt 0:00:16]} Nbd7 {[%emt 0:00:13]} 13.
Rfe1 {[%emt 0:00:39]} c6 {[%emt 0:00:19]} 14. Kh1 {[%emt 0:00:47]} Nh5 {
[%emt 0:00:12]} 15. Bd2 {[%emt 0:00:14]} c5 {[%emt 0:00:20]} 16. dxc5 {[%emt 0:
00:18]} Nxc5 {[%emt 0:00:11]} 17. Ng1 {[%emt 0:00:11]} Nxb3 {[%emt 0:00:14]}
18. cxb3 {[%emt 0:00:10]} Nf6 {[%emt 0:00:13]} 19. Red1 {[%emt 0:00:16]} Qc7 {
[%emt 0:00:14]} 20. Nh3 {[%emt 0:00:40]} Qc6 {[%emt 0:00:15]} 21. f3 {[%emt 0:
00:15]} Nh5 {[%emt 0:00:19]} 22. g4 {[%emt 0:00:15]} Nf6 {[%emt 0:00:13]} 23.
Rf1 {[%emt 0:00:28]} Nxg4 {[%emt 0:00:13]} 24. Qg2 {[%emt 0:00:19]} Nf6 {
[%emt 0:00:20]} 25. Bxh6 {[%emt 0:00:14]} Nh5 {[%emt 0:00:12]} 26. Rae1 {
[%emt 0:00:18]} Kh8 {[%emt 0:00:20]} 27. Re5 {[%emt 0:00:23]} gxh6 {[%emt 0:00:
17]} 28. Rxh5 {[%emt 0:00:11]} Kh7 {[%emt 0:00:15]} 29. Rg1 {[%emt 0:00:11]}
Rg8 {[%emt 0:00:15]} 30. Qc2+ {[%emt 0:00:11]} Kh8 {[%emt 0:00:13]} 31. Rxh6# {
[%emt 0:00:13] KeenOrangeTeeth won by checkmate} 1-0

[Event "Fast Chess"]
[Site "ChessKid.com"]
[Date "2020.04.16"]
[Round "4"]
[White "Dai, Lana"]
[Black "Sasse, Gabriel"]
[Result "1/2-1/2"]
[ECO "C55"]
[WhiteElo "1265"]
[BlackElo "1256"]
[PlyCount "29"]
[EventDate "2020.??.??"]
[TimeControl "300+10"]
[WhiteClock "0:04:38"]
[BlackClock "0:04:13"]

1. e4 {[%emt 0:00:15]} e5 {[%emt 0:00:10]} 2. Nf3 {[%emt 0:00:10]} Nc6 {
[%emt 0:00:10]} 3. Nc3 {[%emt 0:00:10]} Nf6 {[%emt 0:00:11]} 4. Bc4 {[%emt 0:
00:11]} h6 {[%emt 0:00:10]} 5. a3 {[%emt 0:00:11]} Bc5 {[%emt 0:00:10]} 6. h3 {
[%emt 0:00:11]} O-O {[%emt 0:00:11]} 7. d3 {[%emt 0:00:10]} Ne8 {[%emt 0:00:10]
} 8. Nd5 {[%emt 0:00:20]} d6 {[%emt 0:00:13]} 9. O-O {[%emt 0:00:15]} Nf6 {
[%emt 0:00:19]} 10. Nxf6+ {[%emt 0:00:13]} Qxf6 {[%emt 0:00:11]} 11. Bd5 {
[%emt 0:00:19]} Qg6 {[%emt 0:00:14]} 12. Nh4 {[%emt 0:00:16]} Qf6 {[%emt 0:00:
12]} 13. Nf3 {[%emt 0:00:11]} Qg6 {[%emt 0:00:11]} 14. Nh4 {[%emt 0:00:14]} Qf6
{[%emt 0:00:11]} 15. Nf3 {[%emt 0:00:11] Game drawn by repetition} 1/2-1/2

[Event "Fast Chess"]
[Site "ChessKid.com"]
[Date "2020.04.16"]
[Round "4"]
[White "Hlinka, Patricia"]
[Black "Li, Tobias"]
[Result "0-1"]
[ECO "B02"]
[WhiteElo "940"]
[BlackElo "1263"]
[PlyCount "76"]
[EventDate "2020.??.??"]
[TimeControl "300+10"]
[WhiteClock "0:02:10"]
[BlackClock "0:00:16"]

1. e4 {[%emt 0:00:26]} e5 {[%emt 0:00:15]} 2. d3 {[%emt 0:00:11]} Nf6 {[%emt 0:
00:22]} 3. f3 {[%emt 0:00:13]} Nc6 {[%emt 0:00:11]} 4. b4 {[%emt 0:00:13]}
Bxb4+ {[%emt 0:00:12]} 5. c3 {[%emt 0:00:16]} Ba5 {[%emt 0:00:13]} 6. a4 {
[%emt 0:00:18]} O-O {[%emt 0:00:18]} 7. Ba3 {[%emt 0:00:15]} Re8 {[%emt 0:00:
18]} 8. Nd2 {[%emt 0:00:16]} Bxc3 {[%emt 0:00:13]} 9. Rc1 {[%emt 0:00:17]}
Bxd2+ {[%emt 0:00:12]} 10. Kxd2 {[%emt 0:00:13]} Nd4 {[%emt 0:00:15]} 11. Rc4 {
[%emt 0:00:21]} d5 {[%emt 0:00:22]} 12. Rc1 {[%emt 0:00:14]} dxe4 {[%emt 0:00:
12]} 13. fxe4 {[%emt 0:00:12]} Bg4 {[%emt 0:00:18]} 14. Qe1 {[%emt 0:00:24]}
Nb3+ {[%emt 0:00:15]} 15. Kc2 {[%emt 0:00:14]} Nxc1 {[%emt 0:00:25]} 16. Qxc1 {
[%emt 0:00:13]} Qd7 {[%emt 0:00:23]} 17. h3 {[%emt 0:00:14]} Qc6+ {[%emt 0:00:
12]} 18. Kb1 {[%emt 0:00:15]} Qxc1+ {[%emt 0:00:10]} 19. Kxc1 {[%emt 0:00:12]}
Bh5 {[%emt 0:00:14]} 20. Be2 {[%emt 0:00:16]} Bxe2 {[%emt 0:00:16]} 21. Nxe2 {
[%emt 0:00:09]} Red8 {[%emt 0:00:13]} 22. Bb2 {[%emt 0:00:40]} Rxd3 {[%emt 0:
00:14]} 23. Ng3 {[%emt 0:00:18]} Rxg3 {[%emt 0:00:12]} 24. Rf1 {[%emt 0:00:46]}
Nxe4 {[%emt 0:00:16]} 25. Re1 {[%emt 0:00:23]} Rxg2 {[%emt 0:00:20]} 26. Rxe4 {
[%emt 0:00:25]} Re8 {[%emt 0:00:17]} 27. Re1 {[%emt 0:00:14]} e4 {[%emt 0:00:
17]} 28. h4 {[%emt 0:00:12]} e3 {[%emt 0:00:11]} 29. h5 {[%emt 0:00:17]} e2 {
[%emt 0:00:11]} 30. a5 {[%emt 0:00:16]} Rf2 {[%emt 0:00:10]} 31. Ba1 {[%emt 0:
00:17]} Rf1 {[%emt 0:00:11]} 32. Rxf1 {[%emt 0:00:16]} exf1=Q+ {[%emt 0:00:13]}
33. Kd2 {[%emt 0:00:13]} Qxa1 {[%emt 0:00:10]} 34. Kd3 {[%emt 0:00:33]} Qxa5 {
[%emt 0:00:15]} 35. Kc2 {[%emt 0:00:16]} Qa3 {[%emt 0:00:11]} 36. Kb1 {[%emt 0:
00:14]} Re3 {[%emt 0:00:10]} 37. Kc2 {[%emt 0:00:12]} Re2+ {[%emt 0:00:10]} 38.
Kb1 {[%emt 0:00:12]} Qb2# {[%emt 0:00:15] OnlyHungryKiwi won by checkmate} 0-1

[Event "Fast Chess"]
[Site "ChessKid.com"]
[Date "2020.04.16"]
[Round "4"]
[White "Halimi, Dorian"]
[Black "Hlinka, Patrick"]
[Result "1-0"]
[ECO "C23"]
[WhiteElo "932"]
[BlackElo "1101"]
[PlyCount "63"]
[EventDate "2020.??.??"]
[TimeControl "300+10"]
[WhiteClock "0:00:44"]
[BlackClock "0:01:00"]

1. e4 {[%emt 0:00:09]} e5 {[%emt 0:00:14]} 2. Nf3 {[%emt 0:01:44]} Bc5 {
[%emt 0:00:14]} 3. Bc4 {[%emt 0:00:13]} d6 {[%emt 0:00:19]} 4. Ng5 {[%emt 0:00:
12]} Qxg5 {[%emt 0:00:24]} 5. O-O {[%emt 0:00:13]} d5 {[%emt 0:00:16]} 6. Bxd5
{[%emt 0:00:13]} c6 {[%emt 0:00:14]} 7. Bc4 {[%emt 0:00:11]} Bg4 {[%emt 0:00:
47]} 8. Qe1 {[%emt 0:00:21]} Bf3 {[%emt 0:00:11]} 9. g3 {[%emt 0:00:20]} Nh6 {
[%emt 0:00:21]} 10. d3 {[%emt 0:00:15]} Ng4 {[%emt 0:00:12]} 11. Bxg5 {[%emt 0:
00:12]} f6 {[%emt 0:00:20]} 12. Bh4 {[%emt 0:00:13]} g5 {[%emt 0:00:23]} 13.
Bxg5 {[%emt 0:00:13]} fxg5 {[%emt 0:00:11]} 14. h3 {[%emt 0:00:13]} Nf6 {
[%emt 0:00:18]} 15. g4 {[%emt 0:00:12]} b5 {[%emt 0:00:28]} 16. Be6 {[%emt 0:
00:13]} Ke7 {[%emt 0:00:18]} 17. Bf5 {[%emt 0:00:18]} Na6 {[%emt 0:00:37]} 18.
Qa5 {[%emt 0:00:14]} Nb4 {[%emt 0:00:15]} 19. Qc7+ {[%emt 0:00:15]} Kf8 {
[%emt 0:00:16]} 20. c3 {[%emt 0:00:16]} Nc2 {[%emt 0:00:13]} 21. Rd1 {[%emt 0:
00:22]} Nxa1 {[%emt 0:00:12]} 22. Rc1 {[%emt 0:00:14]} h5 {[%emt 0:00:25]} 23.
Qxc6 {[%emt 0:00:18]} hxg4 {[%emt 0:00:13]} 24. Qxa8+ {[%emt 0:00:12]} Kg7 {
[%emt 0:00:12]} 25. Qc6 {[%emt 0:00:16]} gxh3 {[%emt 0:00:15]} 26. Kh2 {
[%emt 0:00:19]} Bxf2 {[%emt 0:00:19]} 27. Rf1 {[%emt 0:00:21]} Ng4+ {[%emt 0:
00:24]} 28. Bxg4 {[%emt 0:00:18]} Bxg4 {[%emt 0:00:10]} 29. Rxf2 {[%emt 0:00:
12]} Bd1 {[%emt 0:00:24]} 30. Qf6+ {[%emt 0:00:12]} Kh7 {[%emt 0:00:13]} 31.
Qf7+ {[%emt 0:00:14]} Kh6 {[%emt 0:00:11]} 32. Rf6# {[%emt 0:00:13]
FullMagentaEclipse won by checkmate} 1-0

[Event "Fast Chess"]
[Site "ChessKid.com"]
[Date "2020.04.17"]
[Round "1"]
[White "Georgiev, Maximilian"]
[Black "Hlinka, Patrick"]
[Result "1-0"]
[ECO "C42"]
[WhiteElo "1342"]
[BlackElo "1131"]
[PlyCount "21"]
[EventDate "2020.??.??"]
[TimeControl "300"]
[WhiteClock "0:04:12"]
[BlackClock "0:04:30"]

1. e4 {[%emt 0:00:00]} e5 {[%emt 0:00:01]} 2. Nf3 {[%emt 0:00:02]} Nf6 {
[%emt 0:00:01]} 3. Nxe5 {[%emt 0:00:03]} Nxe4 {[%emt 0:00:04]} 4. Qe2 {[%emt 0:
00:02]} f5 {[%emt 0:00:09]} 5. f3 {[%emt 0:00:07]} d6 {[%emt 0:00:17]} 6. fxe4
{[%emt 0:00:02]} dxe5 {[%emt 0:00:02]} 7. exf5 {[%emt 0:00:03]} g6 {[%emt 0:00:
04]} 8. fxg6 {[%emt 0:00:03]} hxg6 {[%emt 0:00:01]} 9. Qxe5+ {[%emt 0:00:03]}
Kf7 {[%emt 0:00:10]} 10. Qxh8 {[%emt 0:00:02]} Bg7 {[%emt 0:00:00]} 11. Qxd8 {
[%emt 0:00:03] TallSnazzyBall won by resignation} 1-0

[Event "Fast Chess"]
[Site "ChessKid.com"]
[Date "2020.04.17"]
[Round "1"]
[White "Li, Patrick"]
[Black "Li, Tobias"]
[Result "0-1"]
[ECO "C50"]
[WhiteElo "1065"]
[BlackElo "1326"]
[PlyCount "76"]
[EventDate "2020.??.??"]
[TimeControl "300"]
[WhiteClock "0:02:05"]
[BlackClock "0:00:13"]

1. e4 {[%emt 0:00:00]} e5 {[%emt 0:00:02]} 2. Nf3 {[%emt 0:00:01]} Nc6 {
[%emt 0:00:01]} 3. Nc3 {[%emt 0:00:05]} Nf6 {[%emt 0:00:01]} 4. Bc4 {[%emt 0:
00:02]} h6 {[%emt 0:00:01]} 5. O-O {[%emt 0:00:03]} Bc5 {[%emt 0:00:02]} 6. h3
{[%emt 0:00:02]} O-O {[%emt 0:00:03]} 7. d3 {[%emt 0:00:08]} d6 {[%emt 0:00:01]
} 8. Bb5 {[%emt 0:00:01]} a6 {[%emt 0:00:07]} 9. Bxc6 {[%emt 0:00:03]} bxc6 {
[%emt 0:00:02]} 10. Re1 {[%emt 0:00:05]} d5 {[%emt 0:00:01]} 11. exd5 {[%emt 0:
00:09]} cxd5 {[%emt 0:00:01]} 12. Rxe5 {[%emt 0:00:06]} d4 {[%emt 0:00:00]} 13.
Rxc5 {[%emt 0:00:19]} dxc3 {[%emt 0:00:02]} 14. bxc3 {[%emt 0:00:02]} Nd7 {
[%emt 0:00:09]} 15. Rc6 {[%emt 0:00:11]} Nb8 {[%emt 0:00:07]} 16. Ba3 {[%emt 0:
00:10]} Nxc6 {[%emt 0:00:05]} 17. Bxf8 {[%emt 0:00:03]} Qxf8 {[%emt 0:00:01]}
18. Qe2 {[%emt 0:00:10]} Be6 {[%emt 0:00:25]} 19. Ne5 {[%emt 0:00:01]} Nxe5 {
[%emt 0:00:05]} 20. Qxe5 {[%emt 0:00:01]} Qd6 {[%emt 0:00:08]} 21. Qe4 {
[%emt 0:00:13]} Qd5 {[%emt 0:00:10]} 22. Qb4 {[%emt 0:00:08]} Rf8 {[%emt 0:00:
12]} 23. Rb1 {[%emt 0:00:16]} Qxa2 {[%emt 0:00:13]} 24. Ra1 {[%emt 0:00:05]}
Qxa1+ {[%emt 0:00:03]} 25. Kh2 {[%emt 0:00:10]} Qa2 {[%emt 0:00:09]} 26. Qe7 {
[%emt 0:00:07]} Qxc2 {[%emt 0:00:04]} 27. Qxc7 {[%emt 0:00:03]} Qxd3 {[%emt 0:
00:03]} 28. Qa7 {[%emt 0:00:07]} Qe2 {[%emt 0:00:07]} 29. Qb6 {[%emt 0:00:12]}
Qd3 {[%emt 0:00:03]} 30. c4 {[%emt 0:00:08]} Qxc4 {[%emt 0:00:03]} 31. Qe3 {
[%emt 0:00:42]} a5 {[%emt 0:00:09]} 32. Qe5 {[%emt 0:00:07]} Qa6 {[%emt 0:00:
03]} 33. Qc7 {[%emt 0:00:13]} a4 {[%emt 0:00:03]} 34. Qc3 {[%emt 0:00:22]} a3 {
[%emt 0:00:01]} 35. Qa1 {[%emt 0:00:05]} a2 {[%emt 0:00:02]} 36. Qb2 {[%emt 0:
00:04]} a1=Q {[%emt 0:00:02]} 37. Qxa1 {[%emt 0:00:00]} Qxa1 {[%emt 0:00:02]}
38. Kg3 {[%emt 0:00:03]} Qe5+ {[%emt 0:00:02] OnlyHungryKiwi won on time} 0-1

[Event "Fast Chess"]
[Site "ChessKid.com"]
[Date "2020.04.17"]
[Round "1"]
[White "Sasse, Gabriel"]
[Black "Halimi, Dorian"]
[Result "0-1"]
[ECO "C00"]
[WhiteElo "1266"]
[BlackElo "1077"]
[PlyCount "96"]
[EventDate "2020.??.??"]
[TimeControl "300"]
[WhiteClock "0:02:00"]
[BlackClock "0:02:07"]

1. e4 {[%emt 0:00:00]} e6 {[%emt 0:00:01]} 2. Nf3 {[%emt 0:00:02]} Nc6 {
[%emt 0:00:04]} 3. Bc4 {[%emt 0:00:01]} Nf6 {[%emt 0:00:04]} 4. Ng5 {[%emt 0:
00:03]} Qe7 {[%emt 0:00:12]} 5. Nxf7 {[%emt 0:00:04]} Qxf7 {[%emt 0:00:02]} 6.
O-O {[%emt 0:00:05]} Be7 {[%emt 0:00:06]} 7. Be2 {[%emt 0:00:04]} O-O {[%emt 0:
00:02]} 8. e5 {[%emt 0:00:01]} Nxe5 {[%emt 0:00:03]} 9. Bh5 {[%emt 0:00:02]}
Nxh5 {[%emt 0:00:02]} 10. Nc3 {[%emt 0:00:02]} b6 {[%emt 0:00:04]} 11. Nb5 {
[%emt 0:00:01]} Ba6 {[%emt 0:00:05]} 12. Nxc7 {[%emt 0:00:01]} Bxf1 {[%emt 0:
00:10]} 13. Nxa8 {[%emt 0:00:04]} Rxa8 {[%emt 0:00:03]} 14. Qxf1 {[%emt 0:00:
02]} Rf8 {[%emt 0:00:04]} 15. Qe2 {[%emt 0:00:10]} Bc5 {[%emt 0:00:08]} 16. h3
{[%emt 0:00:11]} Qxf2+ {[%emt 0:00:06]} 17. Qxf2 {[%emt 0:00:05]} Bxf2+ {
[%emt 0:00:01]} 18. Kh2 {[%emt 0:00:01]} Nc4 {[%emt 0:00:05]} 19. b3 {[%emt 0:
00:04]} Ne5 {[%emt 0:00:02]} 20. Ba3 {[%emt 0:00:02]} Rf4 {[%emt 0:00:05]} 21.
Bd6 {[%emt 0:00:04]} Bg3+ {[%emt 0:00:04]} 22. Kg1 {[%emt 0:00:03]} Rf5 {
[%emt 0:00:07]} 23. Bxe5 {[%emt 0:00:02]} Rxe5 {[%emt 0:00:01]} 24. d4 {
[%emt 0:00:06]} Re4 {[%emt 0:00:02]} 25. c3 {[%emt 0:00:01]} Re3 {[%emt 0:00:
02]} 26. Rc1 {[%emt 0:00:04]} Re2 {[%emt 0:00:05]} 27. a4 {[%emt 0:00:03]} d6 {
[%emt 0:00:05]} 28. Kf1 {[%emt 0:00:01]} Rf2+ {[%emt 0:00:04]} 29. Kg1 {
[%emt 0:00:05]} Nf4 {[%emt 0:00:02]} 30. Re1 {[%emt 0:00:08]} Nd3 {[%emt 0:00:
01]} 31. Ra1 {[%emt 0:00:05]} Rc2 {[%emt 0:00:05]} 32. Rb1 {[%emt 0:00:11]}
Rxc3 {[%emt 0:00:01]} 33. Kf1 {[%emt 0:00:08]} Rc2 {[%emt 0:00:01]} 34. Rd1 {
[%emt 0:00:08]} Rf2+ {[%emt 0:00:02]} 35. Kg1 {[%emt 0:00:04]} Nf4 {[%emt 0:00:
03]} 36. Rc1 {[%emt 0:00:03]} Nxg2 {[%emt 0:00:03]} 37. Rc8+ {[%emt 0:00:06]}
Kf7 {[%emt 0:00:04]} 38. Rc7+ {[%emt 0:00:01]} Kf6 {[%emt 0:00:03]} 39. Rxa7 {
[%emt 0:00:03]} Ne3 {[%emt 0:00:05]} 40. Ra8 {[%emt 0:00:02]} h6 {[%emt 0:00:
03]} 41. Rc8 {[%emt 0:00:03]} e5 {[%emt 0:00:03]} 42. Rc3 {[%emt 0:00:02]} Rf3
{[%emt 0:00:06]} 43. Rc6 {[%emt 0:00:04]} exd4 {[%emt 0:00:02]} 44. Rxb6 {
[%emt 0:00:05]} d3 {[%emt 0:00:03]} 45. Rb8 {[%emt 0:00:02]} d2 {[%emt 0:00:01]
} 46. Rf8+ {[%emt 0:00:02]} Ke5 {[%emt 0:00:06]} 47. Rxf3 {[%emt 0:00:02]}
d1=Q+ {[%emt 0:00:03]} 48. Rf1 {[%emt 0:00:01]} Qxf1# {[%emt 0:00:04]
FullMagentaEclipse won by checkmate} 0-1

[Event "Fast Chess"]
[Site "ChessKid.com"]
[Date "2020.04.17"]
[Round "2"]
[White "Halimi, Dorian"]
[Black "Georgiev, Maximilian"]
[Result "1-0"]
[ECO "A00"]
[WhiteElo "1092"]
[BlackElo "1330"]
[PlyCount "61"]
[EventDate "2020.??.??"]
[TimeControl "300"]
[WhiteClock "0:02:23"]
[BlackClock "0:02:23"]

1. e3 {[%emt 0:00:02]} e5 {[%emt 0:00:03]} 2. Nf3 {[%emt 0:00:03]} Nc6 {
[%emt 0:00:02]} 3. Nc3 {[%emt 0:00:03]} Nf6 {[%emt 0:00:02]} 4. Bb5 {[%emt 0:
00:07]} d6 {[%emt 0:00:02]} 5. Bxc6+ {[%emt 0:00:02]} bxc6 {[%emt 0:00:01]} 6.
d3 {[%emt 0:00:03]} d5 {[%emt 0:00:05]} 7. Nxe5 {[%emt 0:00:04]} Be7 {[%emt 0:
00:09]} 8. Nxc6 {[%emt 0:00:02]} Qd6 {[%emt 0:00:02]} 9. Nxe7 {[%emt 0:00:04]}
Qxe7 {[%emt 0:00:02]} 10. Qe2 {[%emt 0:00:10]} O-O {[%emt 0:00:04]} 11. e4 {
[%emt 0:00:01]} dxe4 {[%emt 0:00:02]} 12. dxe4 {[%emt 0:00:01]} Bb7 {[%emt 0:
00:06]} 13. f3 {[%emt 0:00:07]} Qd6 {[%emt 0:00:10]} 14. O-O {[%emt 0:00:05]}
Ba6 {[%emt 0:00:03]} 15. Nb5 {[%emt 0:00:12]} Bxb5 {[%emt 0:00:05]} 16. Qxb5 {
[%emt 0:00:01]} Qd4+ {[%emt 0:00:04]} 17. Kh1 {[%emt 0:00:08]} a6 {[%emt 0:00:
07]} 18. Qb7 {[%emt 0:00:04]} Qc5 {[%emt 0:00:10]} 19. a4 {[%emt 0:00:08]} Qxc2
{[%emt 0:00:04]} 20. Qb4 {[%emt 0:00:09]} Rfd8 {[%emt 0:00:12]} 21. Bg5 {
[%emt 0:00:05]} Rd6 {[%emt 0:00:07]} 22. Bxf6 {[%emt 0:00:04]} Rxf6 {[%emt 0:
00:02]} 23. h4 {[%emt 0:00:05]} Rg6 {[%emt 0:00:02]} 24. Rg1 {[%emt 0:00:11]}
Rh6 {[%emt 0:00:09]} 25. g3 {[%emt 0:00:04]} Rd6 {[%emt 0:00:05]} 26. Rac1 {
[%emt 0:00:04]} Qf2 {[%emt 0:00:08]} 27. Qb7 {[%emt 0:00:05]} Qxf3+ {[%emt 0:
00:05]} 28. Rg2 {[%emt 0:00:07]} Re8 {[%emt 0:00:12]} 29. Qxc7 {[%emt 0:00:03]}
Rdd8 {[%emt 0:00:08]} 30. Kh2 {[%emt 0:00:07]} Rc8 {[%emt 0:00:04]} 31. Qxc8 {
[%emt 0:00:06] FullMagentaEclipse won by resignation} 1-0

[Event "Fast Chess"]
[Site "ChessKid.com"]
[Date "2020.04.17"]
[Round "2"]
[White "Li, Tobias"]
[Black "Sasse, Gabriel"]
[Result "0-1"]
[ECO "C50"]
[WhiteElo "1317"]
[BlackElo "1276"]
[PlyCount "118"]
[EventDate "2020.??.??"]
[TimeControl "300"]
[WhiteClock "0:02:13"]
[BlackClock "0:00:43"]

1. e4 {[%emt 0:00:01]} e5 {[%emt 0:00:00]} 2. Nf3 {[%emt 0:00:01]} Nc6 {
[%emt 0:00:01]} 3. Nc3 {[%emt 0:00:02]} Nf6 {[%emt 0:00:01]} 4. Bc4 {[%emt 0:
00:01]} h6 {[%emt 0:00:00]} 5. O-O {[%emt 0:00:03]} Bc5 {[%emt 0:00:01]} 6. d3
{[%emt 0:00:07]} O-O {[%emt 0:00:01]} 7. Re1 {[%emt 0:00:05]} d6 {[%emt 0:00:
01]} 8. Be3 {[%emt 0:00:02]} Bxe3 {[%emt 0:00:02]} 9. Rxe3 {[%emt 0:00:01]} Nd4
{[%emt 0:00:01]} 10. h3 {[%emt 0:00:04]} Ne8 {[%emt 0:00:06]} 11. Nb5 {[%emt 0:
00:10]} Qf6 {[%emt 0:00:05]} 12. Nbxd4 {[%emt 0:00:05]} exd4 {[%emt 0:00:02]}
13. Nxd4 {[%emt 0:00:05]} Qxd4 {[%emt 0:00:04]} 14. c3 {[%emt 0:00:13]} Qf6 {
[%emt 0:00:04]} 15. Bb3 {[%emt 0:00:15]} b6 {[%emt 0:00:03]} 16. Bd5 {[%emt 0:
00:04]} Rb8 {[%emt 0:00:03]} 17. Rf3 {[%emt 0:00:13]} Qd8 {[%emt 0:00:07]} 18.
Qb3 {[%emt 0:00:09]} Nf6 {[%emt 0:00:11]} 19. Bc4 {[%emt 0:00:11]} Be6 {
[%emt 0:00:04]} 20. Bxe6 {[%emt 0:00:05]} fxe6 {[%emt 0:00:01]} 21. Qxe6+ {
[%emt 0:00:02]} Kh8 {[%emt 0:00:09]} 22. Qb3 {[%emt 0:00:17]} Nd7 {[%emt 0:00:
03]} 23. Rxf8+ {[%emt 0:00:06]} Qxf8 {[%emt 0:00:03]} 24. Re1 {[%emt 0:00:06]}
Ne5 {[%emt 0:00:04]} 25. Re3 {[%emt 0:00:05]} Qf6 {[%emt 0:00:04]} 26. Qd5 {
[%emt 0:00:07]} Rf8 {[%emt 0:00:06]} 27. Re2 {[%emt 0:00:10]} Nxd3 {[%emt 0:00:
03]} 28. Qxd3 {[%emt 0:00:04]} Qg5 {[%emt 0:00:08]} 29. Re3 {[%emt 0:00:14]}
Qh4 {[%emt 0:00:08]} 30. Rf3 {[%emt 0:00:06]} Rxf3 {[%emt 0:00:04]} 31. Qxf3 {
[%emt 0:00:02]} Qg5 {[%emt 0:00:06]} 32. Qf8+ {[%emt 0:00:07]} Kh7 {[%emt 0:00:
03]} 33. Qf5+ {[%emt 0:00:01]} Qxf5 {[%emt 0:00:04]} 34. exf5 {[%emt 0:00:01]}
g6 {[%emt 0:00:01]} 35. fxg6+ {[%emt 0:00:02]} Kxg6 {[%emt 0:00:01]} 36. Kh2 {
[%emt 0:00:00]} Kf5 {[%emt 0:00:02]} 37. g4+ {[%emt 0:00:01]} Kf4 {[%emt 0:00:
01]} 38. Kg2 {[%emt 0:00:02]} d5 {[%emt 0:00:06]} 39. f3 {[%emt 0:00:07]} c5 {
[%emt 0:00:03]} 40. Kf2 {[%emt 0:00:00]} d4 {[%emt 0:00:01]} 41. cxd4 {[%emt 0:
00:02]} cxd4 {[%emt 0:00:01]} 42. Ke2 {[%emt 0:00:00]} d3+ {[%emt 0:00:02]} 43.
Kxd3 {[%emt 0:00:02]} Kxf3 {[%emt 0:00:01]} 44. b4 {[%emt 0:00:09]} Kg3 {
[%emt 0:00:00]} 45. a4 {[%emt 0:00:04]} Kxh3 {[%emt 0:00:01]} 46. a5 {[%emt 0:
00:02]} bxa5 {[%emt 0:00:02]} 47. bxa5 {[%emt 0:00:01]} Kxg4 {[%emt 0:00:01]}
48. Kc4 {[%emt 0:00:01]} h5 {[%emt 0:00:01]} 49. Kb5 {[%emt 0:00:01]} h4 {
[%emt 0:00:01]} 50. Kc6 {[%emt 0:00:01]} h3 {[%emt 0:00:01]} 51. Kb7 {[%emt 0:
00:00]} h2 {[%emt 0:00:01]} 52. Kxa7 {[%emt 0:00:01]} h1=Q {[%emt 0:00:02]} 53.
Kb6 {[%emt 0:00:03]} Qg1+ {[%emt 0:00:02]} 54. Kb5 {[%emt 0:00:01]} Qb1+ {
[%emt 0:00:02]} 55. Ka4 {[%emt 0:00:05]} Kf4 {[%emt 0:00:04]} 56. a6 {[%emt 0:
00:03]} Ke4 {[%emt 0:00:01]} 57. Ka5 {[%emt 0:00:00]} Kd5 {[%emt 0:00:02]} 58.
a7 {[%emt 0:00:00]} Kc5 {[%emt 0:00:01]} 59. a8=Q {[%emt 0:00:07]} Qb5# {
[%emt 0:00:02] LimeFarActor won by checkmate} 0-1